bitfinex/quotes_SOLUSD_20250924
["timestamp","ask_amount","ask_price","bid_price","bid_amount"]
[1758742813895,36.32,213.38,213.35,17.06496835]
[1758742814096,3.39034233,213.37,213.36,0.66]
[1758742814509,3.39034233,213.37,213.35,16.40496835]
[1758742814701,3.39034233,213.36,213.35,17.06496835]
[1758742815318,3.39034233,213.36,213.35,16.40496835]
[1758742815916,3.39034233,213.36,213.35,17.06496835]
[1758742816315,3.39034233,213.37,213.35,17.06496835]
[1758742816515,3.39034233,213.37,213.36,0.66]
[1758742816716,3.39034233,213.37,213.36,5.34691413]
[1758742817305,3.39034233,213.38,213.36,17.06419946]
[1758742817506,39.71034233,213.38,213.37,0.66]
[1758742817905,36.32,213.38,213.37,0.66]
[1758742818725,39.71034233,213.38,213.37,5.34669447]
[1758742819215,39.71034233,213.38,213.37,4.68669447]
[1758742821239,39.71034233,213.38,213.36,16.40419946]
[1758742821517,36.32,213.38,213.36,16.40419946]
[1758742821824,3.39034233,213.37,213.36,17.08419946]
[1758742823225,3.39034233,213.37,213.36,0.68]
[1758742825305,3.39034233,213.37,213.36,5.36691413]
[1758742827121,36.32,213.38,213.36,5.36691413]
[1758742827309,36.32,213.38,213.37,5.36669447]
[1758742828225,0.2,213.4,213.37,5.36669447]
[1758742828529,39.91034233,213.4,213.38,0.68]
[1758742828720,39.91034233,213.4,213.39,0.68]
[1758742829303,36.52,213.4,213.39,0.68]
[1758742829525,36.52,213.4,213.39,5.36625521]
[1758742829722,39.91034233,213.4,213.39,5.36625521]
[1758742830427,36.52,213.4,213.39,5.36625521]
[1758742830731,39.89034233,213.4,213.39,5.36625521]
[1758742831945,36.5,213.4,213.39,5.36625521]
[1758742832136,39.89034233,213.4,213.39,5.36625521]
[1758742832324,3.59034233,213.4,213.39,5.36625521]
[1758742832641,36.5,213.4,213.39,5.36625521]
[1758742832943,39.89034233,213.4,213.39,5.36625521]
[1758742833821,0.2,213.4,213.39,5.36625521]
[1758742834626,3.59034233,213.4,213.39,5.36625521]
[1758742835353,0.2,213.4,213.39,5.36625521]
[1758742835649,3.59034233,213.4,213.39,5.36625521]
[1758742838045,0.2,213.4,213.39,5.36625521]
[1758742841325,0.2,213.4,213.32,23.43896493]
[1758742841326,3.59034233,213.4,213.38,4.68642819]
[1758742841525,39.69034233,213.39,213.38,4.68642819]
[1758742841831,39.69034233,213.39,213.37,4.68669447]
[1758742842021,3.39034233,213.38,213.37,5.36669447]
[1758742842217,3.39034233,213.38,213.37,4.68669447]
[1758742842422,3.39034233,213.38,213.37,5.36669447]
[1758742843050,39.69034233,213.38,213.37,4.68669447]
[1758742843245,39.69034233,213.38,213.33,16.40650634]
[1758742843429,3.39034233,213.37,213.33,17.08650634]
[1758742843628,3.39034233,213.37,213.34,0.68]
[1758742846839,3.39034233,213.37,213.35,4.68713381]
[1758742847168,3.39034233,213.37,213.36,0.68]
[1758742847332,36.3,213.38,213.36,0.68]
[1758742847543,3.39034233,213.37,213.36,0.68]
[1758742848567,3.39034233,213.37,213.36,5.36691413]
[1758742848872,3.39034233,213.37,213.36,4.68691413]
[1758742850628,3.39034233,213.37,213.35,11.71783454]
[1758742850833,3.39034233,213.36,213.35,11.71783454]
[1758742851550,39.69034233,213.36,213.35,12.38783454]
[1758742852260,39.69034233,213.36,213.35,17.07496835]
[1758742852561,0.2,213.4,213.35,17.07496835]
[1758742852761,42.82074487,213.39,213.36,0.67]
[1758742852961,39.69034233,213.39,213.35,16.40496835]
[1758742853256,3.39034233,213.37,213.36,0.67]
[1758742854559,3.39034233,213.37,213.36,5.35691413]
[1758742858865,3.39034233,213.37,213.34,0.67]
[1758742859063,3.39034233,213.35,213.32,23.43896493]
[1758742859267,3.39034233,213.34,213.32,23.43896493]
[1758742859644,3.39034233,213.34,213.33,0.67]
[1758742860443,36.3,213.39,213.34,16.40573732]
[1758742860651,3.39034233,213.35,213.34,16.40573732]
[1758742861254,3.39034233,213.35,213.34,17.12573732]
[1758742862553,3.39034233,213.35,213.34,12.4383838]
[1758742863648,3.39034233,213.35,213.34,17.12573732]
[1758742864048,3.39034233,213.36,213.34,17.12573732]
[1758742864369,3.39034233,213.36,213.35,5.40713381]
[1758742866486,3.39034233,213.36,213.35,17.12496835]
[1758742867476,36.28,213.39,213.35,17.12496835]
[1758742867661,3.39034233,213.36,213.35,16.40496835]
[1758742867857,3.39034233,213.38,213.35,16.40496835]
[1758742868058,0.2,213.4,213.35,16.40496835]
[1758742868261,3.39034233,213.39,213.36,0.72]
[1758742868574,3.39034233,213.39,213.37,4.68669447]
[1758742868976,3.39034233,213.39,213.38,0.72]
[1758742870044,0.2,213.4,213.38,0.72]
[1758742870258,3.39034233,213.39,213.37,16.40343065]
[1758742870462,3.39034233,213.38,213.37,16.40343065]
[1758742870663,2.16816383,213.38,213.37,16.40343065]
[1758742870966,2.16816383,213.38,213.37,17.12343065]
[1758742873556,2.16816383,213.39,213.37,17.12343065]
[1758742873763,2.16816383,213.39,213.38,0.72]
[1758742874363,2.16816383,213.39,213.37,16.40343065]
[1758742874673,2.16816383,213.38,213.37,17.12343065]
[1758742877260,2.16816383,213.38,213.37,16.40343065]
[1758742877653,2.16816383,213.38,213.37,4.68669447]
[1758742878665,2.16816383,213.38,213.35,16.40496835]
[1758742878981,2.16816383,213.36,213.35,17.12496835]
[1758742879585,2.16816383,213.36,213.35,16.40496835]
[1758742879969,2.16816383,213.36,213.35,11.71783454]
[1758742880170,2.16816383,213.36,213.35,12.43783454]
[1758742881067,36.28,213.39,213.35,12.43783454]
[1758742881271,2.16816383,213.36,213.35,12.43783454]
[1758742882288,2.16816383,213.36,213.35,17.12496835]
[1758742882757,2.16816383,213.38,213.35,17.12496835]
[1758742882960,2.16816383,213.38,213.36,0.71]
[1758742883880,0.2,213.4,213.36,0.71]
[1758742884102,26.0,213.42,213.36,2.87816383]
[1758742884103,2.16816383,213.42,213.36,2.87816383]
[1758742884256,2.16816383,213.42,213.37,0.71]
[1758742884459,2.16816383,213.42,213.38,16.40266191]
[1758742884675,2.36816383,213.44,213.39,0.71]
[1758742885472,0.2,213.44,213.39,0.71]
[1758742885789,0.2,213.44,213.4,14.08880644]
[1758742885991,2.16816383,213.43,213.41,0.71]
[1758742886496,2.16816383,213.43,213.42,4.68559647]
[1758742886790,2.16816383,213.43,213.42,19.48440291]
[1758742887868,2.16816383,213.43,213.42,4.68559647]
[1758742889368,2.16816383,213.43,213.4,12.42485887]
[1758742889369,2.16816383,213.43,213.41,4.68581603]
[1758742889564,2.16816383,213.42,213.41,16.40035611]
[1758742889880,0.2,213.44,213.41,17.11035611]
[1758742890066,2.16816383,213.42,213.41,16.40035611]
[1758742892099,2.16816383,213.42,213.41,17.11035611]
[1758742894372,0.2,213.44,213.41,17.11035611]
[1758742894569,2.16816383,213.42,213.41,17.11035611]
[1758742897377,2.16816383,213.42,213.41,16.40035611]
[1758742897794,2.16816383,213.42,213.41,11.71454008]
[1758742898498,2.16816383,213.42,213.39,4.68625521]
[1758742898796,2.16816383,213.4,213.39,4.68625521]
[1758742899195,38.42816383,213.4,213.39,4.68625521]
[1758742899897,38.42816383,213.4,213.38,4.68647483]
[1758742900078,38.42816383,213.4,213.38,5.39647483]
[1758742900506,38.42816383,213.4,213.38,4.68647483]
[1758742900507,2.16816383,213.39,213.38,4.68647483]
[1758742900719,2.16816383,213.39,213.32,0.71]
[1758742901003,2.16816383,213.33,213.32,14.80211546]
[1758742901213,2.16816383,213.33,213.31,16.40804462]
[1758742901417,36.24,213.36,213.31,17.11804462]
[1758742901418,2.16816383,213.32,213.31,17.11804462]
[1758742902084,2.16816383,213.35,213.31,40.55810837]
[1758742902294,2.16816383,213.35,213.32,0.71]
[1758742903099,2.16816383,213.35,213.32,14.80542604]
[1758742903300,2.16816383,213.35,213.33,0.71]
[1758742903484,2.16816383,213.34,213.33,0.71]
[1758742904285,2.16816383,213.34,213.33,4.68757324]
[1758742904494,2.16816383,213.34,213.33,5.39757324]
[1758742906279,2.16816383,213.34,213.33,4.68757324]
[1758742906805,2.16816383,213.34,213.33,5.39757324]
[1758742908006,2.16816383,213.34,213.31,16.40804462]
[1758742908185,2.16816383,213.32,213.31,17.11804462]
[1758742910699,2.16816383,213.33,213.31,17.11804462]
[1758742911009,2.16816383,213.34,213.32,0.66]
[1758742911224,2.16816383,213.35,213.32,0.66]
[1758742912093,2.16816383,213.35,213.33,4.68757324]
[1758742912294,26.0,213.4,213.34,0.66]
[1758742912494,2.16816383,213.36,213.34,0.66]
[1758742913310,2.16816383,213.36,213.35,0.66]
[1758742914107,2.16816383,213.36,213.35,5.34713381]
[1758742915695,2.16816383,213.36,213.35,4.68713381]
[1758742916115,2.16816383,213.36,213.32,14.75542604]
[1758742916292,36.24,213.39,213.32,14.75542604]
[1758742916293,2.16816383,213.33,213.32,14.75542604]
[1758742917009,2.16816383,213.33,213.32,0.66]
[1758742917410,2.16816383,213.33,213.31,14.09608834]
[1758742917732,2.16816383,213.32,213.29,16.40958319]
[1758742917929,2.16816383,213.31,213.3,0.66]
[1758742918119,2.16816383,213.31,213.3,5.34823253]
[1758742918524,2.16816383,213.32,213.3,5.34823253]
[1758742918698,2.16816383,213.32,213.31,0.66]
[1758742919829,26.0,213.36,213.31,0.66]
[1758742920140,2.16816383,213.32,213.31,0.66]
[1758742920323,2.16816383,213.32,213.31,5.34801275]
[1758742922617,2.16816383,213.32,213.31,17.06804462]
[1758742925103,2.16816383,213.32,213.31,11.72003187]
[1758742925803,2.16816383,213.32,213.31,12.42003187]
[1758742926431,2.16816383,213.32,213.31,17.10804462]
[1758742927416,2.16816383,213.32,213.31,11.72003187]
[1758742928127,28.16816383,213.32,213.24,2.44948255]
[1758742928426,26.0,213.32,213.25,17.11211842]
[1758742929030,26.0,213.32,213.25,16.41211842]
[1758742929244,13.73775558,213.31,213.25,4.68933177]
[1758742929443,28.16816383,213.26,213.22,16.41457991]
[1758742929743,2.16816383,213.23,213.22,4.68999155]
[1758742930303,26.0,213.26,213.22,17.11497044]
[1758742930617,38.40816383,213.28,213.23,0.7]
[1758742930813,38.40816383,213.28,213.23,2.86816383]
[1758742931034,38.40816383,213.28,213.24,0.7]
[1758742931813,38.40816383,213.28,213.25,16.41266119]
[1758742932021,38.40816383,213.28,213.26,0.7]
[1758742932511,38.40816383,213.28,213.27,0.7]
[1758742932710,39.6309142,213.28,213.27,0.7]
[1758742934023,3.3909142,213.28,213.27,5.38889201]
[1758742935010,3.3909142,213.29,213.27,17.11112204]
[1758742935214,3.3909142,213.3,213.28,0.7]
[1758742935636,3.3909142,213.3,213.27,16.41112204]
[1758742935637,3.3909142,213.3,213.29,0.7]
[1758742935844,3.3909142,213.3,213.27,16.41112204]
[1758742936143,3.3909142,213.29,213.28,0.7]
[1758742936350,3.3909142,213.29,213.27,16.41112204]
[1758742936926,3.3909142,213.29,213.28,0.7]
[1758742937133,36.24,213.33,213.28,0.7]
[1758742937333,3.3909142,213.3,213.28,0.7]
[1758742937625,3.3909142,213.3,213.29,0.7]
[1758742938038,3.3909142,213.3,213.29,5.38845234]
[1758742938927,3.3909142,213.3,213.29,17.10958319]
[1758742940156,36.24,213.32,213.29,17.10958319]
[1758742940345,3.3909142,213.3,213.29,17.10958319]
[1758742941044,36.24,213.32,213.29,17.10958319]
[1758742941241,3.3909142,213.3,213.29,17.10958319]
[1758742942046,134.6,213.37,213.3,0.72]
[1758742942219,36.24,213.36,213.3,0.72]
[1758742942416,3.3909142,213.33,213.3,0.72]
[1758742942617,3.3909142,213.32,213.29,39.85184489]
[1758742942941,3.3909142,213.31,213.3,0.72]
[1758742943244,3.3909142,213.32,213.3,0.72]
[1758742943620,3.3909142,213.32,213.31,0.72]
[1758742943930,3.3909142,213.34,213.31,0.72]
[1758742944838,3.3909142,213.34,213.32,4.68779298]
[1758742945144,3.3909142,213.34,213.33,0.72]
[1758742945545,36.24,213.35,213.33,0.72]
[1758742945746,3.3909142,213.34,213.33,0.72]
[1758742946446,3.3909142,213.34,213.33,5.40757324]
[1758742946640,3.3909142,213.36,213.33,17.12650634]
[1758742946832,3.3909142,213.36,213.34,0.72]
[1758742947637,3.3909142,213.35,213.34,0.72]
[1758742948035,3.3909142,213.35,213.33,16.40650634]
[1758742948239,3.3909142,213.35,213.33,17.12650634]
[1758742948646,3.3909142,213.34,213.33,16.40650634]
[1758742948820,39.6109142,213.34,213.33,4.68757324]
[1758742949021,39.6109142,213.34,213.31,4.68785283]
[1758742949221,3.3909142,213.32,213.31,4.68785283]
[1758742950038,29.3909142,213.32,213.31,4.68785283]
[1758742951649,29.3909142,213.32,213.28,4.68867216]
[1758742951830,3.3909142,213.29,213.28,4.68867216]
[1758742952749,3.3909142,213.29,213.28,11.72168042]
[1758742954152,3.3909142,213.29,213.27,0.72]
[1758742954345,3.3909142,213.28,213.27,0.72]
[1758742954941,36.22,213.3,213.28,0.72]
[1758742955137,3.3909142,213.29,213.28,5.40867216]
[1758742955734,3.3909142,213.29,213.28,4.68867216]
[1758742956252,3.3909142,213.29,213.28,5.40867216]
[1758742956435,36.22,213.31,213.28,17.13035258]
[1758742956636,3.3909142,213.29,213.28,17.13035258]
[1758742956834,3.3909142,213.29,213.28,16.41035258]
[1758742957233,3.3909142,213.3,213.28,16.41035258]
[1758742957439,3.3909142,213.3,213.29,0.72]
[1758742958451,3.3909142,213.3,213.28,17.13035258]
[1758742958654,36.22,213.31,213.29,0.72]
[1758742958960,3.3909142,213.3,213.28,17.13035258]
[1758742959258,3.3909142,213.29,213.28,17.13035258]
[1758742962462,36.22,213.31,213.28,17.13035258]
[1758742962662,3.3909142,213.29,213.28,16.41035258]
[1758742963854,3.3909142,213.29,213.28,17.13035258]
[1758742964868,13.73775558,213.34,213.28,17.13035258]
[1758742965047,3.3909142,213.29,213.28,17.13035258]
[1758742967566,3.3909142,213.29,213.28,4.68867216]
[1758742967762,29.3909142,213.29,213.28,4.68867216]
[1758742968967,29.3909142,213.29,213.26,16.41189158]
[1758742969269,36.22,213.31,213.26,4.68911188]
[1758742969270,29.3909142,213.27,213.26,4.68911188]
[1758742969571,65.6109142,213.27,213.26,4.68911188]
[1758742970070,29.3909142,213.27,213.26,4.68911188]
[1758742970267,65.6109142,213.27,213.24,16.41343086]
[1758742970487,3.3909142,213.25,213.24,4.68955167]
[1758742970782,3.3909142,213.25,213.22,4.68999155]
[1758742970783,26.0,213.24,213.22,4.68999155]
[1758742970952,39.6109142,213.23,213.22,4.68999155]
[1758742971546,39.6109142,213.23,213.2,4.69027098]
[1758742971750,0.14216157,213.31,213.21,0.68]
[1758742972070,3.3909142,213.25,213.21,0.68]
[1758742972375,3.3909142,213.24,213.22,16.41497044]
[1758742972877,36.22,213.26,213.23,0.68]
[1758742973047,3.3909142,213.24,213.23,0.68]
[1758742973246,3.3909142,213.24,213.22,16.41497044]
[1758742973859,3.3909142,213.24,213.23,0.68]
[1758742975165,3.3909142,213.24,213.23,5.3697716]
[1758742976358,36.22,213.26,213.23,17.09420062]
[1758742976558,3.3909142,213.24,213.23,16.41420062]
[1758742977172,3.3909142,213.24,213.23,17.09420062]
[1758742979661,3.3909142,213.24,213.23,17.02502018]
[1758742979862,3.3909142,213.25,213.23,17.02502018]
[1758742980173,3.3909142,213.25,213.24,0.69]
[1758742981868,134.6,213.32,213.24,17.10343086]
[1758742982073,3.3909142,213.27,213.25,0.69]
[1758742983281,3.3909142,213.27,213.24,16.41343086]
[1758742983578,3.3909142,213.27,213.26,0.69]
[1758742983877,3.3909142,213.27,213.26,5.37911188]
[1758742984079,3.3909142,213.27,213.26,4.68911188]
[1758742984574,3.3909142,213.27,213.26,5.37911188]
[1758742985456,36.22,213.29,213.26,5.37911188]
[1758742985457,3.3909142,213.28,213.26,5.37911188]
[1758742985657,3.3909142,213.28,213.27,0.69]
[1758742985970,3.3909142,213.28,213.27,5.37889201]
[1758742986363,36.22,213.29,213.27,5.37889201]
[1758742986556,3.3909142,213.28,213.27,4.68889201]
[1758742986982,3.3909142,213.28,213.27,16.41112204]
[1758742987375,3.6733142,213.28,213.27,16.41112204]
[1758742987566,3.6733142,213.28,213.27,17.10112204]
[1758742987765,3.6733142,213.28,213.27,16.41112204]
[1758742988160,3.6733142,213.28,213.26,4.68911188]
[1758742988359,3.3909142,213.27,213.26,4.68911188]
[1758742988677,0.2824,213.28,213.26,4.68911188]
[1758742988893,3.6733142,213.28,213.27,0.69]
[1758742989185,0.2824,213.28,213.27,0.69]
[1758742990058,0.2824,213.28,213.27,5.37889201]
[1758742990257,3.6733142,213.28,213.27,5.37889201]
[1758742990474,3.6733142,213.28,213.27,4.68889201]
[1758742990671,3.6733142,213.28,213.27,5.37889201]
[1758742992277,0.2824,213.28,213.27,5.37889201]
[1758742992769,3.6733142,213.28,213.27,5.37889201]
[1758742994588,2.4527408,213.28,213.27,5.37889201]
[1758742995175,2.4527408,213.28,213.27,4.68889201]
[1758742995863,2.4527408,213.28,213.25,4.68933177]
[1758742995864,38.6527408,213.28,213.25,4.68933177]
[1758742996183,28.1703408,213.26,213.25,4.68933177]
[1758742996692,28.1703408,213.26,213.23,0.69]
[1758742996889,2.1703408,213.24,213.23,0.69]
[1758742999068,2.1703408,213.24,213.19,16.41728035]
[1758742999289,2.1703408,213.24,213.2,0.69]
[1758742999491,2.1703408,213.23,213.2,0.69]
[1758742999797,36.2,213.25,213.2,0.69]
[1758743000904,62.2,213.26,213.21,16.41574034]
[1758743001072,62.2,213.26,213.22,0.7]
[1758743001898,62.2,213.26,213.23,4.6897716]
[1758743002099,62.2,213.26,213.23,5.3897716]
[1758743004997,62.2,213.26,213.23,4.6897716]
[1758743006181,36.2,213.25,213.24,0.7]
[1758743006396,38.3703408,213.25,213.18,4.69087156]
[1758743006598,2.1703408,213.19,213.18,5.39087156]
[1758743007100,2.1703408,213.19,213.18,17.11640038]
[1758743007298,2.1703408,213.2,213.18,17.11805046]
[1758743007489,2.1703408,213.2,213.19,0.7]
[1758743007691,2.1703408,213.23,213.19,0.7]
[1758743007999,2.1703408,213.24,213.19,0.7]
[1758743008201,2.1703408,213.23,213.2,16.4165103]
[1758743008497,36.2,213.25,213.21,0.7]
[1758743008498,2.1703408,213.22,213.21,0.7]
[1758743008712,2.1703408,213.22,213.2,16.4165103]
[1758743009196,2.1703408,213.21,213.2,16.4165103]
[1758743009401,2.1703408,213.21,213.2,17.1165103]
[1758743009597,36.2,213.25,213.2,17.1165103]
[1758743009798,2.1703408,213.21,213.2,16.4165103]
[1758743010402,2.1703408,213.22,213.2,17.1165103]
[1758743010702,2.1703408,213.23,213.21,0.7]
[1758743010903,2.1703408,213.23,213.22,0.7]
[1758743011604,36.2,213.25,213.22,0.7]
[1758743011794,38.3703408,213.25,213.2,39.86866789]
[1758743011996,38.3703408,213.25,213.21,0.7]
[1758743012709,38.3703408,213.25,213.22,16.41497044]
[1758743012884,38.3703408,213.25,213.23,0.7]
[1758743013806,2.1703408,213.25,213.24,4.68955167]
[1758743014109,2.1703408,213.25,213.24,5.38955167]
[1758743014892,2.1703408,213.26,213.24,17.11343086]
[1758743015091,2.1703408,213.26,213.24,16.41343086]
[1758743016498,28.1703408,213.27,213.26,4.68911188]
[1758743016699,28.1703408,213.27,213.23,11.72413742]
[1758743017006,26.0,213.23,213.21,4.69021152]
[1758743017209,26.0,213.23,213.17,0.8]
[1758743017210,38.3703408,213.22,213.17,11.827271]
[1758743017511,2.1703408,213.18,213.17,16.51836261]
[1758743018610,2.1703408,213.18,213.17,17.21836261]
[1758743022409,2.4527408,213.18,213.17,17.21836261]
[1758743025415,0.2824,213.18,213.17,17.21836261]
[1758743026800,220.2999288,213.33,213.17,19.38870341]
[1758743027002,2.1703408,213.22,213.18,0.7]
[1758743028325,2.1703408,213.22,213.19,16.41728035]
[1758743028497,2.1703408,213.22,213.2,0.7]
[1758743028792,2.1703408,213.22,213.21,0.7]
[1758743029196,36.2,213.25,213.21,0.7]
[1758743029421,2.1703408,213.23,213.21,0.7]
[1758743029606,2.1703408,213.24,213.21,0.7]
[1758743030403,26.0,213.28,213.22,4.68999155]
[1758743030639,2.1703408,213.26,213.23,0.7]
[1758743030925,2.1703408,213.24,213.22,39.86492823]
[1758743031501,2.1703408,213.24,213.22,40.58492823]
[1758743033222,2.1703408,213.24,213.23,0.72]
[1758743033521,2.1703408,213.24,213.19,4.69065153]
[1758743033522,26.0,213.21,213.19,4.69065153]
[1758743033728,2.1703408,213.2,213.19,4.69065153]
[1758743034821,2.1703408,213.2,213.18,4.69087156]
[1758743035025,2.1703408,213.19,213.18,4.69087156]
[1758743036520,26.0,213.18,213.17,0.1]
[1758743036720,28.1703408,213.18,213.17,0.1]
[1758743038637,30.3406816,213.18,213.17,0.1]
[1758743040728,44.07843718,213.18,213.17,0.1]
[1758743045144,80.27843718,213.18,213.17,0.1]
[1758743050558,44.07843718,213.18,213.17,0.81]
[1758743050747,38.3703408,213.18,213.17,5.50109161]
[1758743054354,38.3703408,213.18,213.17,4.79109161]
[1758743054558,38.3703408,213.18,213.17,5.50109161]
[1758743055360,3.91214349,213.29,213.17,17.22882065]
[1758743055547,2.1703408,213.2,213.18,0.71]
[1758743055753,2.1703408,213.2,213.19,4.69065153]
[1758743055957,2.1703408,213.2,213.19,17.12728035]
[1758743056267,28.1703408,213.2,213.19,17.12728035]
[1758743056652,29.39409799,213.2,213.19,17.12728035]
[1758743057264,29.39409799,213.2,213.19,4.69065153]
[1758743057265,65.59409799,213.2,213.19,4.69065153]
[1758743057964,65.59409799,213.2,213.18,4.69087156]
[1758743058180,3.39409799,213.19,213.18,5.40087156]
[1758743060069,3.39409799,213.19,213.18,4.69087156]
[1758743060261,26.0,213.18,213.17,4.79109015]
[1758743060572,65.59409799,213.18,213.17,4.79109015]
[1758743060981,65.59409799,213.18,213.17,0.1]
[1758743060982,68.98819598,213.18,213.17,0.1]
[1758743061272,83.41595156,213.18,213.17,0.1]
[1758743062084,82.72595156,213.18,213.17,0.1]
[1758743062858,83.41595156,213.18,213.17,0.1]
[1758743063051,82.72595156,213.18,213.17,0.1]
[1758743065374,62.2,213.18,213.17,4.79109161]
[1758743065583,3.39409799,213.18,213.17,5.50109161]
[1758743065872,39.59409799,213.18,213.17,5.50109161]
[1758743066285,3.39409799,213.18,213.17,17.22882065]
[1758743066450,134.6,213.23,213.17,17.22882065]
[1758743066654,36.2,213.22,213.18,0.71]
[1758743066949,29.39409799,213.19,213.18,0.71]
[1758743067265,3.39409799,213.19,213.18,5.40087156]
[1758743070879,3.39409799,213.2,213.18,5.40087156]
[1758743071193,36.2,213.22,213.19,0.71]
[1758743072185,26.0,213.25,213.19,0.71]
[1758743072505,3.39409799,213.23,213.19,0.71]
[1758743072808,3.39409799,213.23,213.2,16.4165103]
[1758743072988,3.39409799,213.23,213.21,0.71]
[1758743074502,62.2,213.25,213.22,16.41497044]
[1758743074702,62.2,213.25,213.23,0.71]
[1758743075215,62.2,213.25,213.24,0.71]
[1758743075405,26.0,213.25,213.24,0.71]
[1758743075583,29.39409799,213.25,213.24,0.71]
[1758743076182,29.39409799,213.25,213.22,16.41497044]
[1758743076386,3.39409799,213.23,213.22,16.41497044]
[1758743076604,3.39409799,213.23,213.22,17.12497044]
[1758743076804,3.39409799,213.23,213.22,16.41497044]
[1758743077787,3.39409799,213.23,213.22,17.12497044]
[1758743078211,3.39409799,213.23,213.22,16.12497044]
[1758743078921,3.39409799,213.23,213.22,0.71]
[1758743079590,3.39409799,213.23,213.2,0.71]
[1758743079792,3.39409799,213.21,213.18,39.87240827]
[1758743080291,3.39409799,213.21,213.2,4.69043151]
[1758743080706,3.39409799,213.21,213.2,5.40043151]
[1758743081308,3.39409799,213.23,213.2,17.1265103]
[1758743081505,3.39409799,213.23,213.21,0.71]
[1758743082626,62.2,213.25,213.22,4.68999155]
[1758743082801,3.39409799,213.23,213.22,4.68999155]
[1758743083416,4.08409799,213.23,213.21,4.69018054]
[1758743083619,26.0,213.19,213.18,4.69087156]
[1758743084213,26.0,213.19,213.18,5.40087156]
[1758743084820,29.39409799,213.19,213.18,5.40087156]
[1758743085199,26.0,213.19,213.18,5.40087156]
[1758743085420,29.39409799,213.19,213.18,5.40087156]
[1758743085808,29.39409799,213.19,213.18,4.69087156]
[1758743086007,40.26409799,213.19,213.18,4.69087156]
[1758743086502,4.08409799,213.19,213.18,4.69087156]
[1758743086817,40.26409799,213.19,213.17,4.79108388]
[1758743087003,4.08409799,213.18,213.17,0.1]
[1758743087823,3.39409799,213.18,213.17,0.1]
[1758743089012,3.39409799,213.18,213.17,4.79109161]
[1758743089333,6.78819598,213.18,213.17,4.79109161]
[1758743090332,42.98819598,213.18,213.17,4.79109161]
[1758743090500,43.67819598,213.18,213.17,4.79109161]
[1758743090699,42.98819598,213.18,213.17,4.79109161]
[1758743091222,43.69819598,213.18,213.17,0.1]
[1758743091922,42.98819598,213.18,213.17,0.1]
[1758743092504,6.78819598,213.18,213.17,4.79109161]
[1758743092704,65.59409799,213.18,213.17,4.79109161]
[1758743096512,68.98819598,213.18,213.17,4.79109161]
[1758743097317,69.84035755,213.18,213.17,0.1]
[1758743097527,63.05216157,213.18,213.17,0.1]
[1758743097831,69.84035755,213.18,213.17,0.1]
[1758743098132,88.12682312,213.18,213.17,0.1]
[1758743098324,3.39409799,213.13,213.12,0.1]
[1758743098633,39.73625956,213.13,213.12,0.1]
[1758743098922,40.44625956,213.13,213.12,0.1]
[1758743100115,54.04185357,213.13,213.12,0.1]
[1758743100830,58.7338256,213.13,213.12,0.1]
[1758743101132,58.7338256,213.13,213.09,0.1]
[1758743101133,43.13185357,213.1,213.09,0.1]
[1758743101322,79.33185357,213.1,213.09,0.1]
[1758743101537,0.69,213.15,213.09,0.82]
[1758743101706,3.39409799,213.1,213.09,0.82]
[1758743102026,39.59409799,213.1,213.09,5.51285278]
[1758743102247,39.59409799,213.1,213.09,0.1]
[1758743102609,39.59409799,213.1,213.09,4.79285278]
[1758743102817,39.59409799,213.1,213.09,0.1]
[1758743103317,40.42625956,213.1,213.09,0.1]
[1758743103511,54.02185357,213.1,213.09,0.1]
[1758743104110,54.02185357,213.1,213.06,4.79347422]
[1758743104111,26.0,213.07,213.06,0.1]
[1758743104323,68.98819598,213.07,213.06,4.79351356]
[1758743104640,65.59409799,213.07,213.06,4.79351356]
[1758743104832,3.39409799,213.07,213.06,4.79351356]
[1758743105132,39.59409799,213.07,213.06,4.79351356]
[1758743105745,39.59409799,213.07,213.06,5.51351356]
[1758743106110,3.39409799,213.07,213.06,5.51351356]
[1758743106328,39.59409799,213.07,213.06,5.51351356]
[1758743107627,3.39409799,213.07,213.06,5.51351356]
[1758743115038,3.39409799,213.07,213.06,4.79351356]
[1758743115237,29.39409799,213.07,213.06,4.79351356]
[1758743115542,13.73775558,213.06,213.05,0.1]
[1758743115718,17.13185357,213.06,213.05,0.1]
[1758743115916,17.82185357,213.06,213.05,0.1]